bitfinex-derivatives/quotes_SOLF0:USTF0_20250113
["timestamp","ask_amount","ask_price","bid_price","bid_amount"]
[1736790405006,22.20935895,176.8,176.68,7.9825]
[1736790405701,25.41925895,176.85,176.68,7.9825]
[1736790405908,25.41925895,176.85,176.7,22.20935895]
[1736790406206,3.2099,176.85,176.73,22.20935895]
[1736790406404,3.2099,176.85,176.74,1.5644]
[1736790406701,3.2099,176.85,176.77,2.8298]
[1736790407397,2.8296,176.79,176.75,9.1101]
[1736790408095,2.8297,176.78,176.75,9.1101]
[1736790408497,2.8297,176.78,176.74,1.5644]
[1736790408700,25.41925895,176.85,176.74,1.5644]
[1736790408998,22.20935895,176.82,176.71,2.8307]
[1736790409205,22.20935895,176.82,176.7,6.26]
[1736790409696,2.8301,176.76,176.7,6.26]
[1736790409897,25.41925895,176.85,176.7,6.26]
[1736790410305,2.83,176.76,176.7,6.26]
[1736790410608,22.20935895,176.82,176.69,7.8311]
[1736790411108,22.20935895,176.79,176.69,6.26]
[1736790411510,22.20935895,176.82,176.69,6.26]
[1736790411906,2.83,176.76,176.69,6.26]
[1736790412410,2.83,176.76,176.71,2.8306]
[1736790412805,22.20935895,176.82,176.69,6.26]
[1736790413006,25.41925895,176.85,176.7,22.20935895]
[1736790413506,25.41925895,176.85,176.75,2.8301]
[1736790413908,25.41925895,176.85,176.71,1.6333]
[1736790414108,3.2099,176.85,176.73,22.20935895]
[1736790414407,156.3722316,176.9,176.73,22.20935895]
[1736790414603,1.6012,176.89,176.73,22.20935895]
[1736790415000,1.6012,176.89,176.76,22.20935895]
[1736790415201,2.8288,176.84,176.77,9.604]
[1736790415401,1.6012,176.89,176.77,9.604]
[1736790415811,2.8287,176.84,176.8,2.8292]
[1736790416405,5.6542,176.95,176.79,22.20935895]
[1736790416611,6.79619754,176.94,176.8,1.5934]
[1736790416910,2.8281,176.88,176.83,2.8288]
[1736790417112,2.8281,176.88,176.8,1.5934]
[1736790417508,25.49375895,176.95,176.8,1.5934]
[1736790417807,3.2844,176.95,176.82,22.20935895]
[1736790418312,2.8277,176.91,176.86,2.8283]
[1736790418607,23.33943014,176.98,176.85,6.26]
[1736790418813,23.33943014,176.98,176.86,3.3168]
[1736790419315,2.8279,176.9,176.86,3.3168]
[1736790420211,2.8279,176.9,176.86,1.697]
[1736790420510,22.20935895,176.95,176.85,6.26]
[1736790420812,22.20935895,176.92,176.8,3.2904]
[1736790421014,2.8277,176.9,176.85,2.8285]
[1736790421313,2.8277,176.9,176.8,3.2904]
[1736790421506,1.7083,176.94,176.8,3.2904]
[1736790421909,1.7083,176.94,176.82,22.20935895]
[1736790422217,2.8278,176.9,176.85,2.8284]
[1736790422414,1.7083,176.94,176.85,2.8284]
[1736790422811,22.20935895,176.95,176.82,22.20935895]
[1736790423013,1.13007119,176.98,176.88,22.20935895]
[1736790423217,1.13007119,176.98,176.88,119.28935895]
[1736790423521,1.13007119,176.98,176.92,2.8273]
[1736790423815,2.8266,176.97,176.89,4.9998]
[1736790424013,2.8266,176.97,176.92,2.8272]
[1736790424216,1.13007119,176.98,176.89,4.9998]
[1736790424408,2.8269,176.96,176.89,4.9998]
[1736790424610,1.13007119,176.98,176.89,7.8275]
[1736790424915,2.8271,176.94,176.89,3.3601]
[1736790425108,1.13007119,176.98,176.88,97.08]
[1736790426309,2.8273,176.93,176.88,99.9079]
[1736790426714,2.8273,176.93,176.88,97.08]
[1736790426909,1.13007119,176.98,176.89,2.8278]
[1736790427221,22.20935895,176.96,176.84,6.4]
[1736790427421,3.2523,176.95,176.84,6.4]
[1736790427614,2.8279,176.89,176.85,2.8283]
[1736790428224,2.828,176.88,176.84,9.2286]
[1736790429023,2.8278,176.9,176.85,2.8285]
[1736790429924,3.2523,176.95,176.84,6.4]
[1736790430325,2.8282,176.87,176.84,6.4]
[1736790431722,22.20935895,176.93,176.81,11.2835]
[1736790431929,2.8284,176.86,176.82,2.8289]
[1736790432827,22.20935895,176.93,176.82,2.8289]
[1736790433029,2.8282,176.87,176.82,2.8289]
[1736790434022,2.8282,176.87,176.83,2.8287]
[1736790435131,2.8282,176.87,176.81,11.2835]
[1736790435132,3.2523,176.95,176.82,22.20935895]
[1736790435426,1.13007119,176.98,176.85,22.20935895]
[1736790435634,2.827,176.95,176.85,22.20935895]
[1736790435930,1.13007119,176.98,176.88,22.20935895]
[1736790436124,1.13007119,176.98,176.89,9.7409]
[1736790436326,3.3135,177.02,176.89,11.4703]
[1736790437621,2.8266,176.97,176.93,2.8271]
[1736790438930,3.3135,177.02,176.89,11.4703]
[1736790438931,2.827,176.95,176.89,11.4703]
[1736790439128,22.20935895,177.0,176.89,11.4703]
[1736790439329,3.3135,177.02,176.89,11.4703]
[1736790439530,2.8266,176.97,176.89,11.4703]
[1736790439733,3.3135,177.02,176.89,5.0903]
[1736790439930,22.20935895,177.0,176.88,6.36]
[1736790440129,22.20935895,177.0,176.85,28.56935895]
[1736790440736,2.8269,176.96,176.85,28.56935895]
[1736790441033,22.20935895,177.0,176.85,28.56935895]
[1736790441627,2.8269,176.95,176.89,2.8278]
[1736790441826,22.20935895,177.0,176.85,28.56935895]
[1736790442426,22.20935895,177.0,176.88,2.8279]
[1736790443023,22.20935895,177.0,176.85,28.56935895]
[1736790443237,22.20935895,176.97,176.82,27.11475895]
[1736790443434,2.8282,176.87,176.83,6.36]
[1736790444025,3.2975,176.93,176.79,119.22935895]
[1736790444234,2.8285,176.85,176.81,2.8291]
[1736790445124,2.8283,176.87,176.83,2.8288]
[1736790445332,3.2975,176.93,176.79,103.38]
[1736790446133,3.2975,176.93,176.79,125.58935895]
[1736790446332,2.828,176.89,176.85,2.8284]
[1736790446735,3.2975,176.93,176.85,2.8284]
[1736790446929,2.8281,176.88,176.85,2.8284]
[1736790447636,3.2975,176.93,176.79,125.58935895]
[1736790448339,22.20935895,176.91,176.79,103.38]
[1736790448733,2.8284,176.86,176.82,2.8289]
[1736790449537,22.20935895,176.91,176.82,2.8289]
[1736790449739,2.8285,176.85,176.82,2.8289]
[1736790450332,2.8284,176.86,176.82,2.8289]
[1736790450737,22.20935895,176.91,176.82,2.8289]
[1736790451334,22.20935895,176.91,176.79,103.38]
[1736790452030,2.8281,176.88,176.82,2.8289]
[1736790452235,22.20935895,176.91,176.79,103.38]
[1736790452640,2.8285,176.86,176.79,103.38]
[1736790452839,22.20935895,176.91,176.79,103.38]
[1736790453140,2.8285,176.86,176.82,2.8289]
[1736790453836,2.8282,176.87,176.84,2.8286]
[1736790454036,3.2975,176.93,176.82,22.20935895]
[1736790454236,3.2975,176.93,176.79,125.58935895]
[1736790454431,2.8286,176.85,176.79,125.58935895]
[1736790455240,2.8283,176.87,176.79,125.58935895]
[1736790455430,3.2975,176.93,176.79,125.58935895]
[1736790456043,3.2975,176.93,176.84,2.8286]
[1736790456244,22.20935895,176.91,176.77,1.6946]
[1736790456431,22.20935895,176.88,176.77,1.6946]
[1736790456636,22.20935895,176.88,176.78,2.8295]
[1736790456832,22.20935895,176.91,176.77,1.6946]
[1736790457036,9.6375,176.93,176.77,1.6946]
[1736790457341,9.6375,176.93,176.82,2.8289]
[1736790457342,13.82223299,176.91,176.82,2.8289]
[1736790457641,13.82223299,176.88,176.79,13.82223299]
[1736790457834,13.82223299,176.88,176.77,1.6946]
[1736790458335,13.82223299,176.88,176.8,2.8292]
[1736790458642,2.8289,176.83,176.77,1.6946]
[1736790458940,2.8289,176.83,176.79,2.8294]
[1736790459337,2.8292,176.81,176.77,4.5243]
[1736790459642,22.1224035,176.9,176.77,1.6946]
[1736790459940,22.1224035,176.87,176.77,1.6946]
[1736790460336,1.7039,176.89,176.77,1.6946]
[1736790460846,1.7039,176.89,176.8,2.8293]
[1736790461438,2.8289,176.83,176.8,2.8293]
[1736790461631,1.7039,176.89,176.77,1.6946]
[1736790461838,22.1224035,176.87,176.71,22.1224035]
[1736790462137,22.1224035,176.87,176.72,6.34]
[1736790462337,22.1224035,176.84,176.74,2.8302]
[1736790462536,22.1224035,176.84,176.71,11.3314]
[1736790462735,5.6561,176.88,176.71,1.6862]
[1736790462736,22.1224035,176.81,176.71,1.6862]
[1736790462935,2.8306,176.73,176.7,97.06]
[1736790463137,22.1224035,176.78,176.67,29.57988714]
[1736790463341,22.1224035,176.78,176.67,26.20942]
[1736790463944,2.8302,176.75,176.7,2.8308]
[1736790464142,22.1224035,176.78,176.67,26.20942]
[1736790464338,22.1224035,176.81,176.67,26.20942]
[1736790464533,22.1224035,176.81,176.71,2.8307]
[1736790464939,22.1224035,176.81,176.67,26.20942]
[1736790465750,2.8304,176.74,176.7,2.8309]
[1736790466748,3.3859,176.83,176.68,22.1224035]
[1736790466941,3.3859,176.83,176.71,22.1224035]
[1736790467137,2.8294,176.8,176.76,2.8298]
[1736790467447,3.3859,176.83,176.74,6.32]
[1736790468343,2.8295,176.79,176.75,2.8301]
[1736790468742,3.3859,176.83,176.74,6.32]
[1736790468941,2.8298,176.77,176.74,9.1502]
[1736790469140,3.3859,176.83,176.74,6.32]
[1736790470442,2.8297,176.78,176.74,9.1501]
[1736790470648,3.3859,176.83,176.69,6.32]
[1736790471145,22.1224035,176.78,176.67,19.86942]
[1736790471547,2.8298,176.77,176.72,2.8305]
[1736790471846,2.8298,176.77,176.67,19.86942]
[1736790471847,28.4424035,176.81,176.67,19.86942]
[1736790472045,22.1224035,176.81,176.67,19.86942]
[1736790472348,3.3859,176.83,176.68,22.1224035]
[1736790472847,3.3859,176.83,176.73,2.8303]
[1736790473042,3.3859,176.83,176.68,22.1224035]
[1736790473250,3.3859,176.83,176.67,19.86942]
[1736790474044,3.3859,176.83,176.68,22.1224035]
[1736790474547,3.3859,176.83,176.67,19.86942]
[1736790475049,2.8305,176.73,176.69,2.8309]
[1736790475545,3.3859,176.83,176.67,26.18942]
[1736790475546,2.8311,176.69,176.67,26.18942]
[1736790475754,22.1224035,176.79,176.67,26.18942]
[1736790476841,22.1224035,176.79,176.67,29.02072]
[1736790477247,22.1224035,176.79,176.67,26.18942]
[1736790477854,28.4424035,176.79,176.67,26.18942]
[1736790478046,28.4424035,176.79,176.67,22.70072]
[1736790478245,28.4424035,176.79,176.67,19.86942]
[1736790478447,2.831,176.7,176.67,19.86942]
[1736790478648,2.831,176.7,176.67,22.70072]
[1736790479454,2.8308,176.71,176.67,22.70072]
[1736790480053,22.1224035,176.79,176.67,19.86942]
[1736790480245,1.6155,176.81,176.68,22.1224035]
[1736790480449,3.3859,176.83,176.68,22.1224035]
[1736790480650,2.8297,176.78,176.68,22.1224035]
[1736790481049,3.3859,176.83,176.71,22.1224035]
[1736790481250,2.8294,176.8,176.72,6.32]
[1736790482142,23.8310035,176.88,176.74,22.1224035]
[1736790482345,2.8291,176.82,176.75,4.9556]
[1736790482549,3.2525,176.9,176.77,22.1224035]
[1736790482749,2.828,176.88,176.77,22.1224035]
[1736790482946,2.828,176.88,176.8,22.1224035]
[1736790483149,2.828,176.88,176.81,6.32]
[1736790483850,22.1224035,176.94,176.81,6.32]
[1736790484355,22.1224035,176.94,176.83,2.8288]
[1736790484550,2.8281,176.88,176.83,2.8288]
[1736790485057,2.8281,176.88,176.81,6.32]
[1736790485252,22.1224035,176.94,176.81,6.32]
[1736790485454,22.1224035,176.91,176.81,6.32]
[1736790485758,22.1224035,176.88,176.76,6.32]
[1736790485963,22.1224035,176.85,176.76,6.32]
[1736790486356,2.8295,176.79,176.76,6.32]
[1736790486559,22.1224035,176.85,176.76,6.32]
[1736790486758,2.8292,176.81,176.76,6.32]
[1736790487558,2.8292,176.81,176.76,9.1499]
[1736790488154,2.8296,176.78,176.76,6.32]
[1736790489160,2.8298,176.77,176.75,1.7211]
[1736790489360,22.1224035,176.82,176.71,6.3]
[1736790489655,22.1224035,176.82,176.69,4.8943]
[1736790490557,2.8302,176.75,176.7,2.8308]
[1736790490961,22.1224035,176.82,176.69,4.8943]
[1736790491156,22.1224035,176.85,176.69,4.8943]
[1736790491365,1.6597,176.86,176.71,22.1224035]
[1736790491562,22.1224035,176.85,176.72,1.5754]
[1736790492158,22.1224035,176.82,176.72,1.5754]
[1736790492360,2.8302,176.75,176.71,2.8307]
[1736790492758,22.1224035,176.82,176.69,4.8486]
[1736790492965,2.8297,176.78,176.73,2.8303]
[1736790493161,2.8297,176.78,176.69,4.8486]
[1736790493360,22.1224035,176.85,176.71,22.1224035]
[1736790494365,2.8296,176.78,176.74,2.8302]
[1736790495060,22.1224035,176.85,176.71,22.1224035]
[1736790495061,2.8294,176.8,176.76,2.8299]
[1736790495263,1.6597,176.86,176.71,22.1224035]
[1736790495666,2.8294,176.8,176.75,2.8301]
[1736790496362,1.6597,176.86,176.71,22.1224035]
[1736790496557,22.1224035,176.85,176.71,22.1224035]
[1736790497464,2.8294,176.8,176.71,22.1224035]
[1736790497763,2.8297,176.78,176.74,2.8302]
[1736790497963,2.8297,176.78,176.71,22.1224035]
[1736790498463,2.8299,176.77,176.73,2.8304]
[1736790498660,22.1224035,176.85,176.71,22.1224035]
[1736790499565,2.8297,176.78,176.71,22.1224035]
[1736790499766,22.1224035,176.85,176.71,22.1224035]
[1736790499963,22.1224035,176.85,176.71,6.28]
[1736790500268,2.8297,176.78,176.74,2.8302]
[1736790500456,22.1224035,176.85,176.71,6.28]
[1736790500656,1.6597,176.86,176.71,28.4024035]
[1736790500860,1.7187,176.87,176.74,22.1224035]
[1736790501056,22.1224035,176.91,176.77,22.1224035]
[1736790501357,2.8285,176.86,176.81,2.829]
[1736790501561,2.8285,176.86,176.8,6.28]
[1736790501765,13.82205312,176.88,176.8,6.28]
[1736790501956,13.82205312,176.85,176.78,1.6997]
[1736790502360,2.829,176.82,176.78,4.5292]
[1736790502674,13.82205312,176.85,176.78,1.6997]
[1736790502966,2.8298,176.78,176.75,6.28]
[1736790503168,13.82205312,176.82,176.72,3.3929]
[1736790503664,13.82205312,176.79,176.72,1.7057]
[1736790503870,13.82205312,176.79,176.71,7.9797]
[1736790504563,13.82205312,176.79,176.71,1.6997]
[1736790504763,2.8305,176.73,176.71,1.6997]
[1736790505258,13.82205312,176.79,176.71,1.6997]
[1736790505474,22.14606361,176.8,176.7,97.08]
[1736790505864,22.14606361,176.8,176.68,1.6872]
[1736790506067,22.14606361,176.77,176.67,19.86942]
[1736790506363,3.2854,176.76,176.67,19.86942]
[1736790506768,2.8304,176.74,176.67,19.86942]
[1736790506966,3.2854,176.76,176.67,19.86942]
[1736790507863,2.8312,176.68,176.67,19.86942]
[1736790508169,2.8312,176.68,176.67,0.01725]
[1736790508562,22.14606361,176.68,176.59,1.5796]
[1736790508759,2.8325,176.6,176.56,31.30481761]
[1736790508967,2.8325,176.6,176.56,34.13781761]
[1736790509468,1.5966,176.67,176.59,2.8327]
[1736790509967,1.5966,176.67,176.55,1.6653]
[1736790511067,2.832,176.63,176.58,2.8328]
[1736790512167,2.832,176.63,176.55,1.6653]
[1736790512168,1.5966,176.67,176.55,1.6653]
[1736790512366,22.14606361,176.65,176.55,1.6653]
[1736790512669,22.14606361,176.65,176.53,1.6669]
[1736790512963,22.14606361,176.62,176.5,103.36]
[1736790513372,2.8331,176.57,176.51,2.8338]
[1736790514667,2.8331,176.57,176.52,2.8338]
[1736790515868,22.14606361,176.62,176.5,97.1]
[1736790516973,22.14606361,176.59,176.49,1.5806]
[1736790517169,1.6315,176.58,176.49,1.5806]
[1736790517570,2.8338,176.52,176.49,1.5806]
[1736790517770,2.8338,176.52,176.47,4.4303]
[1736790518276,2.8338,176.52,176.48,2.8344]
[1736790519877,1.6315,176.58,176.5,2.8341]
[1736790520271,2.8334,176.55,176.5,2.8341]
[1736790520573,1.6315,176.58,176.5,2.8341]
[1736790520775,2.8335,176.54,176.5,2.8341]
[1736790520974,1.6315,176.58,176.49,2.8342]
[1736790521580,22.14606361,176.56,176.45,7.8021]
[1736790521771,22.14606361,176.56,176.45,1.5821]
[1736790521971,1.6361,176.55,176.46,2.8347]
[1736790522172,1.6361,176.55,176.45,1.5821]
[1736790522577,2.8341,176.51,176.47,2.8345]
[1736790522779,1.6361,176.55,176.44,63.34680296]
[1736790523078,2.8344,176.49,176.44,66.18180296]
[1736790523281,2.8344,176.49,176.44,1.574]
[1736790523477,1.6361,176.55,176.44,1.574]
[1736790524174,2.8338,176.52,176.44,1.574]
[1736790524575,2.8338,176.52,176.47,2.8345]
[1736790525474,1.6361,176.55,176.46,2.8347]
[1736790525684,1.6361,176.55,176.44,1.574]
[1736790525983,22.14606361,176.53,176.44,1.574]
[1736790526881,22.14606361,176.53,176.44,4.4091]
[1736790527084,3.2941,176.55,176.44,1.574]
[1736790527679,1.6361,176.55,176.44,1.574]
[1736790528278,1.6315,176.58,176.44,1.574]
[1736790528484,1.6315,176.58,176.46,22.14606361]
[1736790528785,22.14606361,176.65,176.52,22.14606361]
[1736790528984,1.7251,176.66,176.55,22.14606361]
[1736790529182,1.5917,176.68,176.55,22.14606361]
[1736790529378,2.8317,176.65,176.55,22.14606361]
[1736790529780,1.5917,176.68,176.55,22.14606361]
[1736790529978,2.8319,176.64,176.59,2.8326]
[1736790530789,2.8319,176.64,176.6,2.8325]
[1736790531787,1.7251,176.73,176.63,2.832]
[1736790531991,1.7251,176.73,176.61,1.6804]
[1736790532691,1.7251,176.73,176.61,4.5126]
[1736790533290,2.8315,176.67,176.61,4.5126]
[1736790534090,22.14606361,176.71,176.61,1.6804]
[1736790534291,22.14606361,176.68,176.56,1.6551]
[1736790534592,2.8325,176.61,176.56,4.4882]
[1736790534790,1.5845,176.67,176.56,1.6551]
[1736790535193,1.5845,176.67,176.56,7.8551]
[1736790535488,2.8321,176.63,176.56,7.8551]
[1736790535691,22.14606361,176.65,176.54,97.22]
[1736790535998,1.7254,176.64,176.54,97.22]
[1736790536399,2.833,176.58,176.54,97.22]
[1736790536698,1.7254,176.64,176.54,97.22]
[1736790537292,22.14606361,176.62,176.54,97.22]
[1736790537600,22.14606361,176.62,176.53,7.8058]
[1736790537894,2.8333,176.56,176.53,7.8058]
[1736790538098,22.14606361,176.62,176.53,10.6394]
[1736790538797,2.833,176.58,176.53,10.6394]
[1736790540293,2.833,176.57,176.53,10.6394]
[1736790540495,22.14606361,176.62,176.53,7.8058]
[1736790540899,2.8332,176.56,176.53,7.8058]
[1736790541294,2.8326,176.6,176.53,7.8058]
[1736790541597,1.7254,176.64,176.53,7.8058]
[1736790542498,2.833,176.58,176.54,2.8334]
[1736790543198,23.73056361,176.67,176.53,29.95186361]
[1736790543400,23.73056361,176.67,176.54,1.6544]
[1736790543591,2.832,176.64,176.54,4.4878]
[1736790543796,23.73056361,176.67,176.54,1.6544]
[1736790544298,23.73056361,176.67,176.53,6.2]
[1736790544495,22.14606361,176.61,176.5,1.6551]
[1736790544704,22.14606361,176.58,176.46,2.8346]
[1736790544892,1.6861,176.57,176.46,2.8346]
[1736790545090,22.14606361,176.55,176.45,4.9056]
[1736790545300,2.8345,176.48,176.45,4.9056]
[1736790545502,22.14606361,176.55,176.45,1.6755]
[1736790545700,2.8344,176.49,176.45,1.6755]
[1736790545901,22.14606361,176.55,176.45,1.6755]
[1736790546602,22.14606361,176.55,176.44,97.2]
[1736790546803,2.8349,176.45,176.43,61.78012734]
[1736790546999,22.14606361,176.52,176.4,1.7277]
[1736790547208,22.14606361,176.49,176.4,1.7277]
[1736790547593,22.14606361,176.49,176.36,2.8364]
[1736790547798,1.658,176.51,176.35,9.3574]
[1736790547799,22.14606361,176.46,176.35,9.3574]
[1736790548102,2.8353,176.43,176.35,9.3574]
[1736790548403,22.14606361,176.46,176.35,9.3574]
[1736790549698,22.14606361,176.46,176.34,101.7844]
[1736790549895,22.14606361,176.43,176.34,97.22]
[1736790550296,22.14606361,176.43,176.31,9.5419]
[1736790550499,22.14606361,176.43,176.31,3.3619]
[1736790550803,22.14606361,176.43,176.31,6.1989]
[1736790551599,2.8363,176.37,176.31,6.1989]
[1736790552906,6.18,176.46,176.31,6.1989]
[1736790553110,1.7034,176.48,176.32,22.14606361]
[1736790553411,22.14606361,176.45,176.32,23.81476361]
[1736790553606,22.14606361,176.42,176.32,1.6687]
[1736790553911,22.14606361,176.39,176.25,61.83873066]
[1736790554204,22.14606361,176.33,176.23,1.63]
[1736790554411,22.14606361,176.33,176.19,3.2583]
[1736790554601,2.8383,176.25,176.19,6.0974]
[1736790554808,22.14606361,176.3,176.19,3.2583]
[1736790555909,22.14606361,176.27,176.14,97.28]
[1736790556609,22.14606361,176.24,176.14,97.28]
[1736790556913,22.14606361,176.24,176.13,6.2]
[1736790556914,2.8397,176.16,176.1,13.963]
[1736790557206,22.14606361,176.24,176.1,13.963]
[1736790557407,2.839,176.2,176.1,7.763]
[1736790557609,22.14606361,176.21,176.07,6.2]
[1736790557806,22.14606361,176.18,176.07,6.2]
[1736790558913,3.3721,176.19,176.07,6.2]
[1736790559314,22.14606361,176.18,176.07,6.2]
[1736790559706,2.8401,176.13,176.07,6.2]
[1736790560212,22.14606361,176.18,176.05,1.571]
[1736790560413,22.14606361,176.18,176.05,4.4123]
[1736790561510,2.8404,176.12,176.06,2.8411]
[1736790562114,2.8404,176.12,176.05,1.571]
[1736790562317,2.8401,176.13,176.07,2.841]
[1736790562707,22.14606361,176.18,176.05,1.571]
[1736790563216,22.14606361,176.15,176.04,97.32]
[1736790563417,22.14606361,176.12,176.0,1.5891]
[1736790563818,22.14606361,176.12,176.01,2.8419]
[1736790564213,2.8421,176.01,175.96,2.8428]
[1736790564411,2.8421,176.01,175.95,61.9465132]
[1736790564818,2.8422,176.0,175.95,61.9465132]
[1736790565718,2.8425,175.99,175.94,103.62]
[1736790565928,2.8425,175.99,175.87,4.9437]
[1736790565929,22.14606361,176.03,175.89,28.36606361]
[1736790566320,22.14606361,176.06,175.89,28.36606361]
[1736790567027,22.14606361,176.06,175.9,1.04462533]
[1736790567813,2.8423,176.0,175.9,1.04462533]
[1736790568017,4.977,176.08,175.95,22.14606361]
[1736790568220,4.977,176.08,175.87,4.9437]
[1736790568221,3.4075,176.08,175.98,22.14606361]
[1736790568417,3.4075,176.08,175.98,28.38606361]
[1736790569225,22.14606361,176.12,175.99,3.2239]
[1736790569423,3.1431,176.14,175.99,4.8114]
[1736790569728,2.8407,176.09,176.03,2.8415]
[1736790570131,2.8407,176.09,176.04,2.8415]
[1736790570337,3.1431,176.14,176.05,6.24]
[1736790570630,6.24,176.26,176.05,6.24]
[1736790570829,3.281,176.21,176.05,6.24]
[1736790571123,3.281,176.21,176.07,22.14606361]
[1736790571329,3.281,176.21,176.08,5.0276]
[1736790571627,23.81756361,176.25,176.1,22.14606361]
[1736790571828,27.12816361,176.25,176.1,22.14606361]
[1736790572031,2.839,176.2,176.1,22.14606361]
[1736790572225,25.45666361,176.25,176.17,2.8394]
[1736790572830,25.45666361,176.25,176.15,6.24]
[1736790572831,3.3106,176.25,176.15,6.24]
[1736790573729,25.45666361,176.25,176.15,6.24]
[1736790573920,25.45666361,176.25,176.1,22.14606361]
[1736790574119,22.14606361,176.18,176.08,3.3053]
[1736790574633,2.8397,176.15,176.08,6.146]
[1736790574834,22.14606361,176.21,176.08,3.3053]
[1736790575330,2.8398,176.15,176.08,3.3053]
[1736790575833,2.84,176.14,176.09,2.8407]
[1736790576029,22.14606361,176.18,176.08,3.3053]
[1736790576228,22.14606361,176.18,176.05,1.6401]
[1736790576427,2.8405,176.1,176.05,4.4813]
[1736790576628,22.14606361,176.18,176.05,1.6401]
[1736790576830,2.8402,176.13,176.07,2.841]
[1736790577029,22.14606361,176.18,176.05,1.6401]
[1736790577432,22.14606361,176.18,176.05,7.8601]
[1736790577726,22.14606361,176.15,176.05,6.22]
[1736790577926,3.3155,176.14,176.05,6.22]
[1736790580533,22.14606361,176.22,176.07,22.14606361]
[1736790580730,22.14606361,176.22,176.08,3.2936]
[1736790581132,22.14606361,176.22,176.09,1.7268]
[1736790582026,22.14606361,176.22,176.1,2.8404]
[1736790582335,22.14606361,176.22,176.09,1.7268]
[1736790582636,2.8401,176.13,176.08,2.8408]
[1736790583032,22.14606361,176.19,176.05,6.22]
[1736790583334,22.14606361,176.19,176.07,2.841]
[1736790583831,2.8402,176.13,176.08,2.8409]
[1736790584234,22.14606361,176.19,176.05,6.22]
[1736790584537,2.8402,176.12,176.05,6.22]
[1736790584732,22.14606361,176.19,176.05,6.22]
[1736790584932,2.8398,176.15,176.1,2.8405]
[1736790585135,22.14606361,176.22,176.05,6.22]
[1736790585136,28.38606361,176.22,176.05,6.22]
[1736790585438,22.14606361,176.18,176.05,6.22]
[1736790585651,2.8404,176.11,176.07,2.841]
[1736790590042,22.14606361,176.18,176.05,6.24]
[1736790590243,22.14606361,176.18,176.06,1.6562]
[1736790590539,2.84,176.14,176.09,2.8406]
[1736790591737,28.38606361,176.22,176.06,1.6562]
[1736790591933,2.8398,176.15,176.07,1.6722]
[1736790592238,28.38606361,176.22,176.08,1.6306]
[1736790592539,22.14606361,176.22,176.08,1.6306]
[1736790592942,2.8393,176.18,176.11,2.8403]
[1736790593137,22.14606361,176.22,176.11,2.8403]
[1736790593539,22.14606361,176.22,176.08,1.6306]
[1736790594944,22.14606361,176.22,176.06,7.8562]
[1736790595142,22.14606361,176.17,176.06,7.8562]
[1736790595343,3.2868,176.16,176.06,7.8562]
[1736790595542,2.8401,176.13,176.08,2.8407]
[1736790596043,2.8399,176.14,176.11,2.8404]
[1736790596442,2.8399,176.14,176.06,7.8562]
[1736790596745,2.8399,176.14,176.1,2.8405]
[1736790596934,2.8401,176.13,176.1,2.8405]
[1736790597138,3.2868,176.16,176.08,2.8407]
[1736790597346,3.2868,176.16,176.02,3.2183]
[1736790597644,22.14606361,176.14,176.03,6.2]
[1736790597840,22.14606361,176.14,176.05,2.8412]
[1736790597841,2.8408,176.09,176.05,2.8412]
[1736790599843,2.8406,176.1,176.06,2.8412]
[1736790600037,1.5755,176.15,176.03,6.2]
[1736790600242,3.2868,176.16,176.03,6.2]
[1736790600446,2.8402,176.13,176.09,2.8406]
[1736790600644,3.2868,176.16,176.03,6.2]
[1736790601447,22.14606361,176.14,176.02,1.5864]
[1736790603246,22.14606361,176.11,175.99,1.6009]
[1736790603451,22.14606361,176.08,175.97,97.71978]
[1736790603655,2.8419,176.02,175.98,2.8424]